[Event "Late-Titled-Tuesday-Blitz-October-17-2023"]
[Site "Chess.com"]
[Date "2023.10.17"]
[Round "10"]
[White "AradNazari"]
[Black "GM_dmitrij"]
[Result "1-0"]
[WhiteElo "2927"]
[BlackElo "3019"]
[TimeControl "180+1"]
[EndTime "15:46:55 PDT"]
[Termination "AradNazari won by resignation"]

1. e4 {[%clk 0:03:00.9]} 1... c6 {[%clk 0:02:59.3]} 2. Nf3 {[%clk 0:03:01.1]}
2... d5 {[%clk 0:03:00.2]} 3. Nc3 {[%clk 0:03:01.5]} 3... dxe4 {[%clk
0:02:59.9]} 4. Nxe4 {[%clk 0:03:02.1]} 4... Nf6 {[%clk 0:03:00.8]} 5. Qe2 {[%clk
0:03:02.7]} 5... Nxe4 {[%clk 0:03:00.8]} 6. Qxe4 {[%clk 0:03:03.6]} 6... Nd7
{[%clk 0:03:01.5]} 7. Bc4 {[%clk 0:03:03.4]} 7... Nf6 {[%clk 0:03:02]} 8. Ne5
{[%clk 0:03:04]} 8... e6 {[%clk 0:03:02.5]} 9. Qe2 {[%clk 0:03:04.7]} 9... b5
{[%clk 0:03:02.3]} 10. Bd3 {[%clk 0:03:04.8]} 10... Qc7 {[%clk 0:02:51.9]} 11.
a4 {[%clk 0:03:05.1]} 11... b4 {[%clk 0:02:52]} 12. Nxc6 {[%clk 0:03:05]} 12...
Bd6 {[%clk 0:02:51.8]} 13. Nd4 {[%clk 0:03:05.3]} 13... a6 {[%clk 0:02:52.1]}
14. Nf5 {[%clk 0:03:05.5]} 14... O-O {[%clk 0:02:51.4]} 15. Nxd6 {[%clk
0:03:04.1]} 15... Qxd6 {[%clk 0:02:52.1]} 16. O-O {[%clk 0:03:04.7]} 16... Bb7
{[%clk 0:02:47.7]} 17. Re1 {[%clk 0:03:05]} 17... Nd5 {[%clk 0:02:41.6]} 18. Qe5
{[%clk 0:02:48.2]} 18... Qc6 {[%clk 0:02:37.7]} 19. b3 {[%clk 0:02:41.1]} 19...
Rae8 {[%clk 0:02:27.7]} 20. Bb2 {[%clk 0:02:35.5]} 20... f6 {[%clk 0:02:28]} 21.
Qg3 {[%clk 0:02:32.2]} 21... e5 {[%clk 0:02:23.3]} 22. Be4 {[%clk 0:02:22.2]}
22... Qd7 {[%clk 0:02:09.3]} 23. d4 {[%clk 0:02:13.3]} 23... Qf5 {[%clk
0:02:01.8]} 24. Bxf5 {[%clk 0:02:10.5]} 1-0

[Event "Late-Titled-Tuesday-Blitz-October-17-2023"]
[Site "Chess.com"]
[Date "2023.10.17"]
[Round "10"]
[White "DawidCzerw"]
[Black "KorolDimitriy75"]
[Result "1-0"]
[WhiteElo "2516"]
[BlackElo "2324"]
[TimeControl "180+1"]
[EndTime "15:47:47 PDT"]
[Termination "DawidCzerw won on time"]

1. e4 {[%clk 0:03:00.9]} 1... c5 {[%clk 0:03:00.1]} 2. Nf3 {[%clk 0:03:01.4]}
2... d6 {[%clk 0:03:00.4]} 3. d4 {[%clk 0:03:02]} 3... cxd4 {[%clk 0:03:01.2]}
4. Nxd4 {[%clk 0:03:02.6]} 4... Nf6 {[%clk 0:03:01.5]} 5. Nc3 {[%clk 0:03:03.3]}
5... g6 {[%clk 0:03:02.1]} 6. h4 {[%clk 0:03:03.6]} 6... Nc6 {[%clk 0:02:54.2]}
7. h5 {[%clk 0:03:03.7]} 7... Nxh5 {[%clk 0:02:43.8]} 8. Be2 {[%clk 0:03:04.3]}
8... Nf6 {[%clk 0:02:36.2]} 9. Be3 {[%clk 0:03:05]} 9... Bg7 {[%clk 0:02:22]}
10. Qd2 {[%clk 0:03:05.6]} 10... Nxd4 {[%clk 0:01:33.2]} 11. Bxd4 {[%clk
0:03:05.7]} 11... O-O {[%clk 0:01:32]} 12. O-O-O {[%clk 0:03:05.9]} 12... Be6
{[%clk 0:01:23.7]} 13. g4 {[%clk 0:03:05.6]} 13... Qa5 {[%clk 0:00:59.9]} 14. g5
{[%clk 0:03:02.2]} 14... Nd7 {[%clk 0:00:48.3]} 15. Bxg7 {[%clk 0:03:02.2]}
15... Kxg7 {[%clk 0:00:48.3]} 16. f4 {[%clk 0:03:02.4]} 16... Bxa2 {[%clk
0:00:26.5]} 17. Bd3 {[%clk 0:03:02.8]} 17... Rac8 {[%clk 0:00:17.8]} 18. Rxh7+
{[%clk 0:03:03.1]} 18... Kxh7 {[%clk 0:00:12.8]} 19. Qh2+ {[%clk 0:03:04]} 19...
Kg8 {[%clk 0:00:12.1]} 20. Rh1 {[%clk 0:03:04]} 1-0

[Event "Late-Titled-Tuesday-Blitz-October-17-2023"]
[Site "Chess.com"]
[Date "2023.10.17"]
[Round "10"]
[White "LogoCzar"]
[Black "AlexNovitz"]
[Result "1-0"]
[WhiteElo "2403"]
[BlackElo "2229"]
[TimeControl "180+1"]
[EndTime "15:48:06 PDT"]
[Termination "LogoCzar won by resignation"]

1. e4 {[%clk 0:03:00.9]} 1... e6 {[%clk 0:02:56.5]} 2. d4 {[%clk 0:02:59.6]}
2... d5 {[%clk 0:02:55.9]} 3. Nc3 {[%clk 0:02:59.7]} 3... Nf6 {[%clk 0:02:55.4]}
4. e5 {[%clk 0:02:59.5]} 4... Nfd7 {[%clk 0:02:55.3]} 5. f4 {[%clk 0:02:58.2]}
5... c5 {[%clk 0:02:55.6]} 6. Nf3 {[%clk 0:02:58.6]} 6... Nc6 {[%clk 0:02:55.8]}
7. Ne2 {[%clk 0:02:58.9]} 7... b5 {[%clk 0:02:53.3]} 8. c3 {[%clk 0:02:58.5]}
8... Qb6 {[%clk 0:02:52.9]} 9. Be3 {[%clk 0:02:57.8]} 9... a5 {[%clk 0:02:52.1]}
10. f5 {[%clk 0:02:56.2]} 10... cxd4 {[%clk 0:02:47.8]} 11. cxd4 {[%clk
0:02:55.8]} 11... Ndxe5 {[%clk 0:02:41.8]} 12. Nxe5 {[%clk 0:02:54.9]} 12...
Nxe5 {[%clk 0:02:41.2]} 13. fxe6 {[%clk 0:02:54.3]} 13... Bxe6 {[%clk
0:02:40.6]} 14. Nf4 {[%clk 0:02:54.3]} 14... Nc4 {[%clk 0:02:31.5]} 15. Bxc4
{[%clk 0:02:48.3]} 15... bxc4 {[%clk 0:02:27]} 16. O-O {[%clk 0:02:42.7]} 16...
Be7 {[%clk 0:02:18]} 17. Qa4+ {[%clk 0:02:37.1]} 17... Bd7 {[%clk 0:02:14.8]}
18. Nxd5 {[%clk 0:02:36.5]} 18... Qb7 {[%clk 0:01:14.4]} 19. Qxc4 {[%clk
0:02:31.3]} 19... Rc8 {[%clk 0:01:08.3]} 20. Qb3 {[%clk 0:02:16.2]} 20... Bb5
{[%clk 0:00:51.7]} 21. Nxe7 {[%clk 0:02:02.6]} 21... Kxe7 {[%clk 0:00:50.2]} 22.
Rxf7+ {[%clk 0:02:01.7]} 1-0

[Event "Late-Titled-Tuesday-Blitz-October-17-2023"]
[Site "Chess.com"]
[Date "2023.10.17"]
[Round "10"]
[White "elprimo2012mortis"]
[Black "dosto07"]
[Result "1-0"]
[WhiteElo "2703"]
[BlackElo "2520"]
[TimeControl "180+1"]
[EndTime "15:48:49 PDT"]
[Termination "elprimo2012mortis won by resignation"]

1. e4 {[%clk 0:03:00.9]} 1... e5 {[%clk 0:03:00]} 2. Bc4 {[%clk 0:03:00]} 2...
Nc6 {[%clk 0:02:57.1]} 3. Nc3 {[%clk 0:02:59.9]} 3... Nf6 {[%clk 0:02:55]} 4. d3
{[%clk 0:03:00.4]} 4... Bc5 {[%clk 0:02:55]} 5. f4 {[%clk 0:03:00.7]} 5... exf4
{[%clk 0:02:55.5]} 6. Bxf4 {[%clk 0:03:00.8]} 6... d6 {[%clk 0:02:56.2]} 7. Nf3
{[%clk 0:03:00.7]} 7... Nd4 {[%clk 0:02:56.8]} 8. Qd2 {[%clk 0:02:54.3]} 8... c6
{[%clk 0:02:56.9]} 9. Nxd4 {[%clk 0:02:52.7]} 9... Bxd4 {[%clk 0:02:56.7]} 10.
O-O-O {[%clk 0:02:52.8]} 10... O-O {[%clk 0:02:55.6]} 11. Rdf1 {[%clk
0:02:48.4]} 11... d5 {[%clk 0:02:34.9]} 12. exd5 {[%clk 0:02:45.8]} 12... Nxd5
{[%clk 0:02:28.4]} 13. Nxd5 {[%clk 0:02:42.2]} 13... cxd5 {[%clk 0:02:27.9]} 14.
Bb3 {[%clk 0:02:42.8]} 14... Be6 {[%clk 0:02:24.4]} 15. c3 {[%clk 0:02:28.4]}
15... Bf6 {[%clk 0:02:20.9]} 16. g4 {[%clk 0:02:24.9]} 16... Bxg4 {[%clk
0:02:07.4]} 17. Rhg1 {[%clk 0:02:23.6]} 17... Bf5 {[%clk 0:01:56.5]} 18. Bg5
{[%clk 0:02:06.3]} 18... Bxg5 {[%clk 0:01:43.6]} 19. Rxg5 {[%clk 0:02:07.2]}
19... Be6 {[%clk 0:01:33.9]} 20. d4 {[%clk 0:01:57.3]} 20... Rc8 {[%clk
0:01:29.7]} 21. Bc2 {[%clk 0:01:54.9]} 21... b5 {[%clk 0:00:57.9]} 22. Rxg7+
{[%clk 0:01:54.6]} 22... Kxg7 {[%clk 0:00:55.4]} 23. Rg1+ {[%clk 0:01:54.9]}
23... Kh8 {[%clk 0:00:49.4]} 24. Qh6 {[%clk 0:01:55]} 1-0

[Event "Late-Titled-Tuesday-Blitz-October-17-2023"]
[Site "Chess.com"]
[Date "2023.10.17"]
[Round "10"]
[White "azikom"]
[Black "wgraif"]
[Result "0-1"]
[WhiteElo "2600"]
[BlackElo "2519"]
[TimeControl "180+1"]
[EndTime "15:49:32 PDT"]
[Termination "wgraif won by resignation"]

1. d4 {[%clk 0:02:58.9]} 1... Nf6 {[%clk 0:02:59.1]} 2. c4 {[%clk 0:02:58.2]}
2... e6 {[%clk 0:02:56.5]} 3. Nc3 {[%clk 0:02:58.2]} 3... Bb4 {[%clk 0:02:56.3]}
4. Qc2 {[%clk 0:02:58.4]} 4... O-O {[%clk 0:02:53.3]} 5. a3 {[%clk 0:02:58]}
5... Bxc3+ {[%clk 0:02:53]} 6. Qxc3 {[%clk 0:02:58.9]} 6... Ne4 {[%clk
0:02:41.4]} 7. Qc2 {[%clk 0:02:58.3]} 7... f5 {[%clk 0:02:42]} 8. f3 {[%clk
0:02:58.3]} 8... Qh4+ {[%clk 0:02:37.5]} 9. g3 {[%clk 0:02:55.6]} 9... Nxg3
{[%clk 0:02:35]} 10. hxg3 {[%clk 0:02:55.7]} 10... Qxh1 {[%clk 0:02:34]} 11. Kf2
{[%clk 0:02:55.5]} 11... Qh5 {[%clk 0:02:13.1]} 12. Nh3 {[%clk 0:02:54.6]} 12...
Nc6 {[%clk 0:02:11.5]} 13. e3 {[%clk 0:02:49.9]} 13... d6 {[%clk 0:02:04.7]} 14.
Bg2 {[%clk 0:02:49.1]} 14... e5 {[%clk 0:02:03.8]} 15. d5 {[%clk 0:02:48.7]}
15... Ne7 {[%clk 0:02:02.6]} 16. Bd2 {[%clk 0:02:48.9]} 16... f4 {[%clk
0:01:57.2]} 17. Rh1 {[%clk 0:02:12.4]} 17... fxg3+ {[%clk 0:01:43.5]} 18. Kxg3
{[%clk 0:02:13.3]} 18... Nf5+ {[%clk 0:01:33.5]} 19. Kf2 {[%clk 0:02:12.8]}
19... Nh4 {[%clk 0:01:26.8]} 20. Ng1 {[%clk 0:02:12.3]} 20... Qg5 {[%clk
0:01:18.2]} 21. Bf1 {[%clk 0:02:11.8]} 21... Bg4 {[%clk 0:00:46.8]} 22. Be2
{[%clk 0:02:05]} 22... e4 {[%clk 0:00:38.1]} 23. Qxe4 {[%clk 0:02:02.2]} 23...
Rae8 {[%clk 0:00:36.2]} 24. Qd4 {[%clk 0:01:57.2]} 24... Bxf3 {[%clk 0:00:32]}
25. Bxf3 {[%clk 0:01:15.1]} 25... Qg2+ {[%clk 0:00:27.3]} 26. Ke1 {[%clk
0:01:14.8]} 26... Nxf3+ {[%clk 0:00:26.7]} 0-1

[Event "Late-Titled-Tuesday-Blitz-October-17-2023"]
[Site "Chess.com"]
[Date "2023.10.17"]
[Round "10"]
[White "Yushko_Olga"]
[Black "santosalberto1987"]
[Result "0-1"]
[WhiteElo "2183"]
[BlackElo "2408"]
[TimeControl "180+1"]
[EndTime "15:49:44 PDT"]
[Termination "santosalberto1987 won by resignation"]

1. d4 {[%clk 0:02:59.6]} 1... d5 {[%clk 0:03:00.2]} 2. c4 {[%clk 0:03:00.2]}
2... c6 {[%clk 0:03:00.5]} 3. cxd5 {[%clk 0:03:00.5]} 3... cxd5 {[%clk
0:03:00.7]} 4. Nc3 {[%clk 0:03:01.4]} 4... Nf6 {[%clk 0:03:01]} 5. Nf3 {[%clk
0:03:02.1]} 5... Nc6 {[%clk 0:03:01.1]} 6. Bf4 {[%clk 0:03:02.6]} 6... Bf5
{[%clk 0:03:00.7]} 7. e3 {[%clk 0:03:03.1]} 7... e6 {[%clk 0:03:00.8]} 8. Bd3
{[%clk 0:03:02.6]} 8... Bxd3 {[%clk 0:03:00.6]} 9. Qxd3 {[%clk 0:03:03.5]} 9...
Be7 {[%clk 0:03:00.7]} 10. O-O {[%clk 0:03:02.6]} 10... O-O {[%clk 0:03:01]} 11.
Rac1 {[%clk 0:03:02.2]} 11... Rc8 {[%clk 0:03:01.2]} 12. a3 {[%clk 0:03:02]}
12... Na5 {[%clk 0:02:58.4]} 13. e4 {[%clk 0:03:00.3]} 13... dxe4 {[%clk
0:02:57.6]} 14. Nxe4 {[%clk 0:03:00.3]} 14... Rxc1 {[%clk 0:02:53.1]} 15. Rxc1
{[%clk 0:02:59.9]} 15... Nc6 {[%clk 0:02:52.4]} 16. h3 {[%clk 0:02:52.2]} 16...
Nxe4 {[%clk 0:02:47.8]} 17. Qxe4 {[%clk 0:02:51.5]} 17... Bf6 {[%clk 0:02:47.6]}
18. Rd1 {[%clk 0:02:43]} 18... Qd5 {[%clk 0:02:44.3]} 19. Qxd5 {[%clk
0:02:40.4]} 19... exd5 {[%clk 0:02:45.2]} 20. Re1 {[%clk 0:02:40.3]} 20... Nxd4
{[%clk 0:02:41.5]} 21. Nxd4 {[%clk 0:02:29.3]} 21... Bxd4 {[%clk 0:02:42.4]} 22.
b4 {[%clk 0:02:27.2]} 22... Bf6 {[%clk 0:02:39.1]} 23. Bd6 {[%clk 0:02:21.7]}
23... Rd8 {[%clk 0:02:37.9]} 24. Bc7 {[%clk 0:02:20.5]} 24... Rc8 {[%clk
0:02:35.7]} 25. b5 {[%clk 0:02:12.2]} 25... h6 {[%clk 0:02:34]} 26. b6 {[%clk
0:02:12.1]} 26... axb6 {[%clk 0:02:26.2]} 27. Bxb6 {[%clk 0:02:13]} 27... Rc3
{[%clk 0:02:25.6]} 28. a4 {[%clk 0:02:08.5]} 28... Rc6 {[%clk 0:02:23.3]} 29.
Rb1 {[%clk 0:02:02]} 29... d4 {[%clk 0:02:21.5]} 30. a5 {[%clk 0:02:00.1]} 30...
d3 {[%clk 0:02:21.2]} 31. Rd1 {[%clk 0:02:00.3]} 31... Rd6 {[%clk 0:02:20.8]}
32. Kf1 {[%clk 0:01:55.5]} 32... Bc3 {[%clk 0:02:20.5]} 33. Rb1 {[%clk
0:01:47.2]} 33... f5 {[%clk 0:02:10.3]} 34. Bc7 {[%clk 0:01:37.3]} 34... Rd7
{[%clk 0:02:06.7]} 35. Bb6 {[%clk 0:01:31.2]} 35... d2 {[%clk 0:02:01.9]} 36.
Rd1 {[%clk 0:01:26.6]} 36... f4 {[%clk 0:01:49]} 37. Ke2 {[%clk 0:01:20.6]}
37... Re7+ {[%clk 0:01:45.1]} 38. Kd3 {[%clk 0:01:20.4]} 38... Re1 {[%clk
0:01:44.5]} 39. Kc2 {[%clk 0:01:19.3]} 39... Kf7 {[%clk 0:01:37.7]} 40. Bc7
{[%clk 0:01:13.5]} 40... g5 {[%clk 0:01:36.3]} 41. h4 {[%clk 0:01:10.2]} 41...
Ke6 {[%clk 0:01:33.5]} 42. hxg5 {[%clk 0:01:09.9]} 42... hxg5 {[%clk 0:01:33.4]}
43. Bd8 {[%clk 0:01:07.8]} 43... Kf5 {[%clk 0:01:33.1]} 44. Bc7 {[%clk
0:01:03.2]} 44... g4 {[%clk 0:01:30.9]} 45. Bd8 {[%clk 0:01:01.2]} 45... f3
{[%clk 0:01:30.7]} 46. gxf3 {[%clk 0:01:00.9]} 46... gxf3 {[%clk 0:01:31.1]} 47.
Bb6 {[%clk 0:01:01.1]} 47... Ke4 {[%clk 0:01:30.1]} 48. Rb1 {[%clk 0:01:00.1]}
48... Rxb1 {[%clk 0:01:29.3]} 0-1

[Event "Late-Titled-Tuesday-Blitz-October-17-2023"]
[Site "Chess.com"]
[Date "2023.10.17"]
[Round "10"]
[White "dianamirza"]
[Black "maurovargas01"]
[Result "1-0"]
[WhiteElo "1998"]
[BlackElo "1895"]
[TimeControl "180+1"]
[EndTime "15:49:49 PDT"]
[Termination "dianamirza won by checkmate"]

1. d4 {[%clk 0:03:00.9]} 1... d5 {[%clk 0:02:56]} 2. Nf3 {[%clk 0:02:55.3]} 2...
c6 {[%clk 0:02:53.6]} 3. c4 {[%clk 0:02:55.1]} 3... e6 {[%clk 0:02:53.3]} 4. e3
{[%clk 0:02:54.1]} 4... Nf6 {[%clk 0:02:52.5]} 5. Bd3 {[%clk 0:02:52.6]} 5...
Nbd7 {[%clk 0:02:53.4]} 6. Nbd2 {[%clk 0:02:52.7]} 6... Bd6 {[%clk 0:02:50.4]}
7. b3 {[%clk 0:02:53.3]} 7... O-O {[%clk 0:02:48.7]} 8. Bb2 {[%clk 0:02:54]}
8... dxc4 {[%clk 0:02:46.9]} 9. bxc4 {[%clk 0:02:53.2]} 9... b6 {[%clk 0:02:47]}
10. Ne5 {[%clk 0:02:52.2]} 10... Qc7 {[%clk 0:02:43.1]} 11. f4 {[%clk
0:02:52.2]} 11... Bb7 {[%clk 0:02:38.2]} 12. O-O {[%clk 0:02:51.4]} 12... c5
{[%clk 0:02:38]} 13. g4 {[%clk 0:02:36]} 13... cxd4 {[%clk 0:02:22.4]} 14. exd4
{[%clk 0:02:28.5]} 14... Rad8 {[%clk 0:01:34.8]} 15. g5 {[%clk 0:02:27.5]} 15...
Ne8 {[%clk 0:01:29.2]} 16. Ndf3 {[%clk 0:02:08.7]} 16... f6 {[%clk 0:01:28.9]}
17. gxf6 {[%clk 0:01:52.9]} 17... gxf6 {[%clk 0:01:28.7]} 18. Ng5 {[%clk
0:01:20.3]} 18... fxg5 {[%clk 0:00:21.4]} 19. Bxh7+ {[%clk 0:01:18.9]} 19...
Kxh7 {[%clk 0:00:09.6]} 20. Qh5+ {[%clk 0:01:18.9]} 20... Kg8 {[%clk 0:00:08.3]}
21. Qg6+ {[%clk 0:01:17.9]} 21... Ng7 {[%clk 0:00:08.3]} 22. Ng4 {[%clk
0:01:11.3]} 22... Qc6 {[%clk 0:00:07.8]} 23. d5 {[%clk 0:01:10.6]} 23... exd5
{[%clk 0:00:04.4]} 24. Qxg7# {[%clk 0:01:10.1]} 1-0

[Event "Late-Titled-Tuesday-Blitz-October-17-2023"]
[Site "Chess.com"]
[Date "2023.10.17"]
[Round "10"]
[White "Levanzovsky"]
[Black "NateSolon"]
[Result "0-1"]
[WhiteElo "2450"]
[BlackElo "2624"]
[TimeControl "180+1"]
[EndTime "15:49:58 PDT"]
[Termination "NateSolon won by resignation"]

1. e4 {[%clk 0:03:00.9]} 1... c5 {[%clk 0:02:59.5]} 2. Nf3 {[%clk 0:03:00.4]}
2... Nf6 {[%clk 0:02:59.5]} 3. d3 {[%clk 0:02:57.9]} 3... Nc6 {[%clk 0:02:58.5]}
4. g3 {[%clk 0:02:58.3]} 4... d6 {[%clk 0:02:58.2]} 5. Bg2 {[%clk 0:02:58.9]}
5... Bg4 {[%clk 0:02:58.3]} 6. h3 {[%clk 0:02:59.2]} 6... Bh5 {[%clk 0:02:57.6]}
7. c3 {[%clk 0:02:57.3]} 7... e6 {[%clk 0:02:58]} 8. O-O {[%clk 0:02:56.8]} 8...
Be7 {[%clk 0:02:58.3]} 9. Be3 {[%clk 0:02:56.5]} 9... O-O {[%clk 0:02:56.6]} 10.
Nbd2 {[%clk 0:02:56.2]} 10... d5 {[%clk 0:02:56.6]} 11. exd5 {[%clk 0:02:55]}
11... Nxd5 {[%clk 0:02:51.6]} 12. Ne4 {[%clk 0:02:54.5]} 12... Nxe3 {[%clk
0:02:50.4]} 13. fxe3 {[%clk 0:02:54.8]} 13... Qb6 {[%clk 0:02:45.3]} 14. Qb3
{[%clk 0:02:51.3]} 14... Rad8 {[%clk 0:02:43.4]} 15. Rfd1 {[%clk 0:02:38.3]}
15... Qc7 {[%clk 0:02:41.1]} 16. g4 {[%clk 0:02:17.1]} 16... Bg6 {[%clk
0:02:40.8]} 17. Ne1 {[%clk 0:02:03]} 17... h5 {[%clk 0:02:35.2]} 18. d4 {[%clk
0:02:01.3]} 18... hxg4 {[%clk 0:02:33.9]} 19. hxg4 {[%clk 0:02:00.4]} 19... Bxe4
{[%clk 0:02:28.2]} 20. Bxe4 {[%clk 0:02:00]} 20... Qg3+ {[%clk 0:02:28.3]} 21.
Bg2 {[%clk 0:01:53.8]} 21... Qxe3+ {[%clk 0:02:26.7]} 22. Kh1 {[%clk 0:01:48.8]}
22... g6 {[%clk 0:01:56.6]} 23. Rd3 {[%clk 0:01:40.9]} 23... Qg5 {[%clk
0:01:50.7]} 24. Rad1 {[%clk 0:01:31.6]} 24... cxd4 {[%clk 0:01:45.7]} 25. cxd4
{[%clk 0:01:31.3]} 25... Na5 {[%clk 0:01:38.2]} 26. Qa4 {[%clk 0:01:25.3]} 26...
Kg7 {[%clk 0:01:28.1]} 27. Nf3 {[%clk 0:01:25.4]} 27... Qh6+ {[%clk 0:01:14.6]}
28. Kg1 {[%clk 0:01:25.9]} 28... Nc6 {[%clk 0:01:13.6]} 29. Qb5 {[%clk
0:01:10.1]} 29... Rd7 {[%clk 0:01:01.2]} 30. Ne5 {[%clk 0:00:45.7]} 30... Nxe5
{[%clk 0:01:00.6]} 31. dxe5 {[%clk 0:00:46]} 31... Rxd3 {[%clk 0:00:58.4]} 32.
Qxd3 {[%clk 0:00:42.2]} 32... Qf4 {[%clk 0:00:56]} 33. Qe4 {[%clk 0:00:37.5]}
33... Bc5+ {[%clk 0:00:54.5]} 34. Kh1 {[%clk 0:00:33.6]} 34... Rh8+ {[%clk
0:00:54.2]} 0-1

[Event "Late-Titled-Tuesday-Blitz-October-17-2023"]
[Site "Chess.com"]
[Date "2023.10.17"]
[Round "10"]
[White "Binary010"]
[Black "JSlaby"]
[Result "1/2-1/2"]
[WhiteElo "2792"]
[BlackElo "2597"]
[TimeControl "180+1"]
[EndTime "15:50:01 PDT"]
[Termination "Game drawn by repetition"]

1. e4 {[%clk 0:03:00.9]} 1... c5 {[%clk 0:02:58.2]} 2. Nf3 {[%clk 0:03:01]} 2...
d6 {[%clk 0:02:55.8]} 3. d4 {[%clk 0:03:00.8]} 3... cxd4 {[%clk 0:02:56.7]} 4.
Nxd4 {[%clk 0:03:01.2]} 4... Nf6 {[%clk 0:02:56.9]} 5. Nc3 {[%clk 0:03:01.8]}
5... g6 {[%clk 0:02:57]} 6. Be3 {[%clk 0:03:00.6]} 6... Bg7 {[%clk 0:02:56.9]}
7. f3 {[%clk 0:03:01.3]} 7... Nc6 {[%clk 0:02:55.4]} 8. Qd2 {[%clk 0:03:01.5]}
8... O-O {[%clk 0:02:53.3]} 9. O-O-O {[%clk 0:03:01.6]} 9... Nxd4 {[%clk
0:02:50]} 10. Bxd4 {[%clk 0:03:01.6]} 10... Be6 {[%clk 0:02:50.2]} 11. Kb1
{[%clk 0:03:01.4]} 11... Qc7 {[%clk 0:02:50]} 12. h4 {[%clk 0:02:57.7]} 12...
Rfc8 {[%clk 0:02:48.6]} 13. h5 {[%clk 0:02:55.4]} 13... Qa5 {[%clk 0:02:48.5]}
14. a3 {[%clk 0:02:54.8]} 14... b5 {[%clk 0:02:46.4]} 15. hxg6 {[%clk
0:02:39.8]} 15... hxg6 {[%clk 0:02:38.7]} 16. g4 {[%clk 0:02:39.8]} 16... b4
{[%clk 0:02:33.5]} 17. Nd5 {[%clk 0:02:17.5]} 17... Bxd5 {[%clk 0:02:31.1]} 18.
exd5 {[%clk 0:02:13.8]} 18... Rab8 {[%clk 0:02:29.1]} 19. g5 {[%clk 0:01:59.6]}
19... Nxd5 {[%clk 0:01:37.5]} 20. Bxg7 {[%clk 0:01:25.3]} 20... Nc3+ {[%clk
0:01:37.3]} 21. Ka1 {[%clk 0:01:23.8]} 21... bxa3 {[%clk 0:01:36.5]} 22. bxc3
{[%clk 0:01:07.2]} 22... Kxg7 {[%clk 0:01:30.6]} 23. c4 {[%clk 0:00:53.7]} 23...
Rb1+ {[%clk 0:01:15.2]} 24. Ka2 {[%clk 0:00:37.8]} 24... Rb2+ {[%clk 0:01:12.4]}
25. Ka1 {[%clk 0:00:37.6]} 25... Rb1+ {[%clk 0:00:36.9]} 26. Ka2 {[%clk
0:00:36.8]} 26... Rb2+ {[%clk 0:00:27.4]} 27. Ka1 {[%clk 0:00:36.9]} 27... Rb1+
{[%clk 0:00:27.8]} 1/2-1/2

[Event "Late-Titled-Tuesday-Blitz-October-17-2023"]
[Site "Chess.com"]
[Date "2023.10.17"]
[Round "10"]
[White "BardArtem"]
[Black "MKlose11"]
[Result "1-0"]
[WhiteElo "2770"]
[BlackElo "2649"]
[TimeControl "180+1"]
[EndTime "15:50:06 PDT"]
[Termination "BardArtem won by resignation"]

1. e4 {[%clk 0:02:57.7]} 1... e6 {[%clk 0:02:59.7]} 2. d4 {[%clk 0:02:54.1]}
2... d5 {[%clk 0:03:00.6]} 3. Nc3 {[%clk 0:02:53.6]} 3... Bb4 {[%clk 0:02:58.7]}
4. Ne2 {[%clk 0:02:52]} 4... dxe4 {[%clk 0:02:57.6]} 5. a3 {[%clk 0:02:52.1]}
5... Bxc3+ {[%clk 0:02:57.9]} 6. Nxc3 {[%clk 0:02:53]} 6... Nc6 {[%clk
0:02:57.5]} 7. Bf4 {[%clk 0:02:52.9]} 7... Nf6 {[%clk 0:02:50.6]} 8. Bb5 {[%clk
0:02:47.6]} 8... Bd7 {[%clk 0:02:46.9]} 9. d5 {[%clk 0:02:47.5]} 9... exd5
{[%clk 0:02:45.6]} 10. Nxd5 {[%clk 0:02:48.4]} 10... O-O {[%clk 0:02:13]} 11.
Bg5 {[%clk 0:02:35.7]} 11... Bg4 {[%clk 0:02:00.9]} 12. Bxf6 {[%clk 0:02:26.4]}
12... Bxd1 {[%clk 0:01:54]} 13. Bxd8 {[%clk 0:02:25.8]} 13... Bxc2 {[%clk
0:01:23.7]} 14. Bxc7 {[%clk 0:02:02.5]} 14... Nd4 {[%clk 0:01:20.6]} 15. Rc1
{[%clk 0:01:51.3]} 15... Bb3 {[%clk 0:01:15.2]} 16. Ne7+ {[%clk 0:01:13.4]}
16... Kh8 {[%clk 0:01:14.1]} 17. Bd7 {[%clk 0:01:13.7]} 17... f5 {[%clk
0:01:05.6]} 18. Be5 {[%clk 0:01:04.9]} 18... Nc2+ {[%clk 0:01:02.2]} 19. Rxc2
{[%clk 0:00:55.8]} 19... Bxc2 {[%clk 0:01:01.6]} 20. Nxf5 {[%clk 0:00:56.5]}
20... Rf7 {[%clk 0:00:35.7]} 21. Be6 {[%clk 0:00:55.4]} 21... Re8 {[%clk
0:00:32.5]} 22. Bxf7 {[%clk 0:00:50.1]} 22... Rxe5 {[%clk 0:00:32.6]} 23. Ne3
{[%clk 0:00:49.4]} 23... Bd3 {[%clk 0:00:32.2]} 24. Kd2 {[%clk 0:00:43.2]} 24...
Rb5 {[%clk 0:00:32.4]} 25. b4 {[%clk 0:00:38.6]} 25... a5 {[%clk 0:00:32.6]} 26.
Rc1 {[%clk 0:00:38]} 26... g6 {[%clk 0:00:32]} 27. Rc5 {[%clk 0:00:35.3]} 1-0

[Event "Late-Titled-Tuesday-Blitz-October-17-2023"]
[Site "Chess.com"]
[Date "2023.10.17"]
[Round "10"]
[White "Qvalda"]
[Black "kai_nov"]
[Result "0-1"]
[WhiteElo "2378"]
[BlackElo "2286"]
[TimeControl "180+1"]
[EndTime "15:50:06 PDT"]
[Termination "kai_nov won by resignation"]

1. Nf3 {[%clk 0:02:34.8]} 1... d5 {[%clk 0:02:59]} 2. g3 {[%clk 0:02:30.7]} 2...
Nf6 {[%clk 0:02:57.8]} 3. Bg2 {[%clk 0:02:24]} 3... c6 {[%clk 0:02:55.4]} 4. O-O
{[%clk 0:02:24.9]} 4... Bg4 {[%clk 0:02:55.1]} 5. c4 {[%clk 0:02:25.8]} 5...
Nbd7 {[%clk 0:02:53.5]} 6. d4 {[%clk 0:02:23.1]} 6... e6 {[%clk 0:02:52.5]} 7.
h3 {[%clk 0:02:22.1]} 7... Bh5 {[%clk 0:02:52]} 8. cxd5 {[%clk 0:02:19.5]} 8...
exd5 {[%clk 0:02:49.9]} 9. g4 {[%clk 0:02:18.8]} 9... Bg6 {[%clk 0:02:49.2]} 10.
Ne5 {[%clk 0:02:18.8]} 10... Bd6 {[%clk 0:02:29.7]} 11. f4 {[%clk 0:02:17.1]}
11... Be4 {[%clk 0:02:28.3]} 12. Nc3 {[%clk 0:02:15.4]} 12... Bxg2 {[%clk
0:02:27.9]} 13. Kxg2 {[%clk 0:02:16.3]} 13... Qe7 {[%clk 0:02:10.7]} 14. Qb3
{[%clk 0:02:10.6]} 14... O-O-O {[%clk 0:02:07.4]} 15. Bd2 {[%clk 0:02:00.3]}
15... Ne8 {[%clk 0:01:36.8]} 16. Rfc1 {[%clk 0:01:55.5]} 16... Nc7 {[%clk
0:01:29.5]} 17. a4 {[%clk 0:01:52.1]} 17... f6 {[%clk 0:01:24.7]} 18. Nxd5
{[%clk 0:01:37.7]} 18... cxd5 {[%clk 0:01:20.7]} 19. e3 {[%clk 0:01:20.8]} 19...
fxe5 {[%clk 0:01:15.2]} 20. fxe5 {[%clk 0:01:20.7]} 20... Nxe5 {[%clk 0:01:14]}
21. dxe5 {[%clk 0:01:19.8]} 21... Qxe5 {[%clk 0:01:14.1]} 22. Ba5 {[%clk
0:00:41.8]} 22... Qh2+ {[%clk 0:01:01.2]} 23. Kf1 {[%clk 0:00:40.8]} 23... Rhf8+
{[%clk 0:00:52.6]} 24. Ke1 {[%clk 0:00:39.7]} 24... Rf2 {[%clk 0:00:52.3]} 25.
Qd3 {[%clk 0:00:19.6]} 25... Qg1+ {[%clk 0:00:49.9]} 0-1